[Event "Titled Tuesday Blitz April 25 Late 2023"]
[White "Bogaudinov, Rushan"]
[Black "Lorenzo De La Riva, Lazaro"]
[WhiteFideId "4129288"]
[BlackFideId "2268809"]
[WhiteElo "1967"]
[BlackElo "2294"]
[Result "0-1"]
[Round "09"]
[TimeControl "180+2"]
[Date "2023.04.25"]
[WhiteClock "0:00:02"]
[BlackClock "0:00:20"]

1. e4 {[%clk 0:02:48]}  e5 {[%clk 0:03:00]} 2. Nc3 {[%clk 0:02:47]}  a6 {[%clk 0:02:59]} 3. f4 {[%clk 0:02:44]}  d6 {[%clk 0:02:58]} 4. Nf3 {[%clk 0:02:43]}  Nc6 {[%clk 0:02:58]} 5. d4 {[%clk 0:02:42]}  Bg4 {[%clk 0:02:56]} 6. dxe5 {[%clk 0:02:38]}  dxe5 {[%clk 0:02:53]} 7. Qxd8+ {[%clk 0:02:29]}  Rxd8 {[%clk 0:02:54]} 8. Nd5 {[%clk 0:02:25]}  Bd6 {[%clk 0:02:47]} 9. Bd3 {[%clk 0:02:18]}  Nge7 {[%clk 0:02:41]} 10. O-O {[%clk 0:02:17]}  O-O {[%clk 0:02:31]} 11. Nxe7+ {[%clk 0:02:16]}  Bxe7 {[%clk 0:02:30]} 12. Nxe5 {[%clk 0:02:15]}  Nxe5 {[%clk 0:02:29]} 13. fxe5 {[%clk 0:02:16]}  Bc5+ {[%clk 0:02:29]} 14. Kh1 {[%clk 0:02:16]}  Bd4 {[%clk 0:02:27]} 15. Bf4 {[%clk 0:02:05]}  c6 {[%clk 0:02:14]} 16. h3 {[%clk 0:01:59]}  Bh5 {[%clk 0:02:12]} 17. g4 {[%clk 0:01:55]}  Bg6 {[%clk 0:02:11]} 18. Rab1 {[%clk 0:01:53]}  Rfe8 {[%clk 0:02:10]} 19. Kg2 {[%clk 0:01:35]}  Bxe5 {[%clk 0:02:07]} 20. Bxe5 {[%clk 0:01:35]}  Rxe5 {[%clk 0:02:08]} 21. Rbe1 {[%clk 0:01:33]}  Rde8 {[%clk 0:02:05]} 22. Kf3 {[%clk 0:01:32]}  h5 {[%clk 0:02:05]} 23. Kf4 {[%clk 0:01:26]}  b5 {[%clk 0:02:03]} 24. b4 {[%clk 0:01:23]}  f6 {[%clk 0:01:57]} 25. Re2 {[%clk 0:01:16]}  Bf7 {[%clk 0:01:51]} 26. a3 {[%clk 0:01:15]}  g5+ {[%clk 0:01:49]} 27. Kf3 {[%clk 0:01:14]}  c5 {[%clk 0:01:42]} 28. bxc5 {[%clk 0:01:12]}  Rxc5 {[%clk 0:01:42]} 29. Ke3 {[%clk 0:01:10]}  Kg7 {[%clk 0:01:41]} 30. Ref2 {[%clk 0:01:08]}  Rc6 {[%clk 0:01:39]} 31. Ra1 {[%clk 0:00:59]}  hxg4 {[%clk 0:01:36]} 32. hxg4 {[%clk 0:01:00]}  Be6 {[%clk 0:01:37]} 33. Kf3 {[%clk 0:00:59]}  Rh8 {[%clk 0:01:33]} 34. Rg2 {[%clk 0:00:58]}  Rc5 {[%clk 0:01:28]} 35. Rg3 {[%clk 0:00:54]}  Bc4 {[%clk 0:01:25]} 36. Rd1 {[%clk 0:00:49]}  Rd8 {[%clk 0:01:23]} 37. Ke3 {[%clk 0:00:48]}  Bf7 {[%clk 0:01:20]} 38. Rf3 {[%clk 0:00:45]}  Bg6 {[%clk 0:01:19]} 39. Rdf1 {[%clk 0:00:43]}  Rd6 {[%clk 0:01:18]} 40. Ra1 {[%clk 0:00:40]}  Re5 {[%clk 0:01:17]} 41. a4 {[%clk 0:00:39]}  b4 {[%clk 0:01:17]} 42. a5 {[%clk 0:00:39]}  Rde6 {[%clk 0:01:16]} 43. Kd2 {[%clk 0:00:34]}  Bxe4 {[%clk 0:01:16]} 44. Rg3 {[%clk 0:00:31]}  Rd6 {[%clk 0:01:15]} 45. Ra4 {[%clk 0:00:29]}  b3 {[%clk 0:01:14]} 46. cxb3 {[%clk 0:00:28]}  Bg6 {[%clk 0:01:08]} 47. Rc4 {[%clk 0:00:26]}  Rxa5 {[%clk 0:01:04]} 48. Rc7+ {[%clk 0:00:26]}  Bf7 {[%clk 0:01:02]} 49. Kc3 {[%clk 0:00:25]}  Kf8 {[%clk 0:00:56]} 50. Rh3 {[%clk 0:00:24]}  Rdd5 {[%clk 0:00:34]} 51. b4 {[%clk 0:00:21]}  Ra3+ {[%clk 0:00:32]} 52. Kc2 {[%clk 0:00:20]}  Raxd3 {[%clk 0:00:31]} 53. Rxd3 {[%clk 0:00:19]}  Bg6 {[%clk 0:00:31]} 54. Kc3 {[%clk 0:00:18]}  Rxd3+ {[%clk 0:00:30]} 55. Kc4 {[%clk 0:00:18]}  Rd6 {[%clk 0:00:29]} 56. Kc5 {[%clk 0:00:18]}  Re6 {[%clk 0:00:29]} 57. Kd5 {[%clk 0:00:17]}  Bf7 {[%clk 0:00:28]} 58. Kc5 {[%clk 0:00:17]}  Kg7 {[%clk 0:00:28]} 59. Ra7 {[%clk 0:00:15]}  Kg6 {[%clk 0:00:28]} 60. Kd4 {[%clk 0:00:14]}  Rc6 {[%clk 0:00:27]} 61. Rd7 {[%clk 0:00:13]}  Bc4 {[%clk 0:00:26]} 62. Rd8 {[%clk 0:00:09]}  Be2 {[%clk 0:00:22]} 63. Rg8+ {[%clk 0:00:06]}  Kf7 {[%clk 0:00:20]} 64. Rb8 {[%clk 0:00:04]}  Bxg4 {[%clk 0:00:20]} 65. Kd5 {[%clk 0:00:05]}  Re6 {[%clk 0:00:19]} 66. Rb7+ {[%clk 0:00:05]}  Kg6 {[%clk 0:00:19]} 67. b5 {[%clk 0:00:03]}  Re5+ {[%clk 0:00:20]} 68. Kd4 {[%clk 0:00:02]}  Rxb5 {[%clk 0:00:21]} 69. Ra7 {[%clk 0:00:02]}  Be2 {[%clk 0:00:20]} 0-1


[Site "https://www.chess.com"]

[Event "Titled Tuesday Blitz April 25 Late 2023"]
[White "Prydun, Andriy"]
[Black "Kostiukov, Alexandr"]
[WhiteFideId "14145898"]
[BlackFideId "14108100"]
[WhiteElo "2164"]
[BlackElo "2202"]
[Result "1/2-1/2"]
[Round "09"]
[TimeControl "180+2"]
[Date "2023.04.25"]
[WhiteClock "0:00:06"]
[BlackClock "0:00:07"]

1. e4 {[%clk 0:03:00]}  c5 {[%clk 0:02:59]} 2. Nf3 {[%clk 0:03:00]}  g6 {[%clk 0:02:59]} 3. d4 {[%clk 0:02:55]}  cxd4 {[%clk 0:02:59]} 4. Qxd4 {[%clk 0:02:39]}  Nf6 {[%clk 0:02:59]} 5. Nc3 {[%clk 0:02:12]}  Nc6 {[%clk 0:02:58]} 6. Qd3 {[%clk 0:02:12]}  Bg7 {[%clk 0:02:55]} 7. Be2 {[%clk 0:02:06]}  O-O {[%clk 0:02:44]} 8. O-O {[%clk 0:02:03]}  d5 {[%clk 0:02:36]} 9. exd5 {[%clk 0:02:01]}  Nb4 {[%clk 0:02:24]} 10. Qd1 {[%clk 0:01:59]}  Nfxd5 {[%clk 0:02:19]} 11. Nxd5 {[%clk 0:01:58]}  Nxd5 {[%clk 0:02:05]} 12. c3 {[%clk 0:01:56]}  e5 {[%clk 0:01:53]} 13. Bg5 {[%clk 0:01:13]}  f6 {[%clk 0:01:52]} 14. Bc1 {[%clk 0:01:12]}  Be6 {[%clk 0:01:49]} 15. c4 {[%clk 0:01:06]}  Ne7 {[%clk 0:01:19]} 16. b3 {[%clk 0:01:02]}  Nc6 {[%clk 0:01:14]} 17. Bb2 {[%clk 0:01:00]}  Qa5 {[%clk 0:01:09]} 18. a3 {[%clk 0:00:54]}  Rfd8 {[%clk 0:01:08]} 19. Qc2 {[%clk 0:00:52]}  Bf5 {[%clk 0:01:02]} 20. Qc1 {[%clk 0:00:45]}  Qb6 {[%clk 0:00:57]} 21. b4 {[%clk 0:00:43]}  Rac8 {[%clk 0:00:35]} 22. c5 {[%clk 0:00:41]}  Qc7 {[%clk 0:00:35]} 23. Qc4+ {[%clk 0:00:38]}  Kh8 {[%clk 0:00:35]} 24. Rfd1 {[%clk 0:00:38]}  Qe7 {[%clk 0:00:27]} 25. Rxd8+ {[%clk 0:00:32]}  Rxd8 {[%clk 0:00:27]} 26. Rd1 {[%clk 0:00:33]}  Rxd1+ {[%clk 0:00:24]} 27. Bxd1 {[%clk 0:00:33]}  Be6 {[%clk 0:00:23]} 28. Qe2 {[%clk 0:00:30]}  Qd7 {[%clk 0:00:20]} 29. Ba4 {[%clk 0:00:27]}  Qd5 {[%clk 0:00:18]} 30. Qd2 {[%clk 0:00:06]}  Qxd2 {[%clk 0:00:15]} 31. Nxd2 {[%clk 0:00:07]}  Kg8 {[%clk 0:00:15]} 32. Ne4 {[%clk 0:00:07]}  Bd5 {[%clk 0:00:14]} 33. Nd6 {[%clk 0:00:07]}  Nd4 {[%clk 0:00:13]} 34. Kf1 {[%clk 0:00:04]}  Bf8 {[%clk 0:00:13]} 35. Bd7 {[%clk 0:00:04]}  Bxd6 {[%clk 0:00:12]} 36. cxd6 {[%clk 0:00:05]}  Kf7 {[%clk 0:00:12]} 37. Bxd4 {[%clk 0:00:04]}  exd4 {[%clk 0:00:12]} 38. Ke2 {[%clk 0:00:05]}  Bc6 {[%clk 0:00:10]} 39. Bc8 {[%clk 0:00:03]}  Bxg2 {[%clk 0:00:10]} 40. Kd3 {[%clk 0:00:04]}  f5 {[%clk 0:00:09]} 41. Kxd4 {[%clk 0:00:03]}  Kf6 {[%clk 0:00:09]} 42. Kc5 {[%clk 0:00:02]}  b6+ {[%clk 0:00:10]} 43. Kd4 {[%clk 0:00:02]}  Bc6 {[%clk 0:00:07]} 44. a4 {[%clk 0:00:02]}  Bxa4 {[%clk 0:00:07]} 45. Kd5 {[%clk 0:00:02]}  Be8 {[%clk 0:00:05]} 46. d7 {[%clk 0:00:02]}  Bxd7 {[%clk 0:00:03]} 47. Bxd7 {[%clk 0:00:02]}  g5 {[%clk 0:00:04]} 48. Bc8 {[%clk 0:00:02]}  a5 {[%clk 0:00:04]} 49. Kd4 {[%clk 0:00:02]}  axb4 {[%clk 0:00:04]} 50. Kc4 {[%clk 0:00:03]}  Ke5 {[%clk 0:00:05]} 51. Kxb4 {[%clk 0:00:04]}  Kf4 {[%clk 0:00:05]} 52. Kb5 {[%clk 0:00:04]}  Kf3 {[%clk 0:00:05]} 53. Bxf5 {[%clk 0:00:05]}  Kxf2 {[%clk 0:00:06]} 54. Bxh7 {[%clk 0:00:05]}  Kg2 {[%clk 0:00:06]} 55. Bf5 {[%clk 0:00:05]}  Kxh2 {[%clk 0:00:06]} 56. Kxb6 {[%clk 0:00:06]}  g4 {[%clk 0:00:07]} 57. Bxg4 {[%clk 0:00:06]} 1/2-1/2


[Site "https://www.chess.com"]

[Event "Titled Tuesday Blitz April 25 Late 2023"]
[White "Smith, Garrett L"]
[Black "Bustamante Orta, Jorge"]
[WhiteFideId "2024829"]
[BlackFideId "5121710"]
[WhiteElo "2047"]
[BlackElo "2165"]
[Result "0-1"]
[Round "09"]
[TimeControl "180+2"]
[Date "2023.04.25"]
[WhiteClock "0:00:05"]
[BlackClock "0:00:52"]

1. e4 {[%clk 0:03:00]}  c6 {[%clk 0:02:45]} 2. d4 {[%clk 0:02:47]}  d5 {[%clk 0:02:45]} 3. e5 {[%clk 0:02:46]}  Bf5 {[%clk 0:02:45]} 4. Nd2 {[%clk 0:02:46]}  e6 {[%clk 0:02:45]} 5. Nb3 {[%clk 0:02:47]}  a6 {[%clk 0:02:44]} 6. Nf3 {[%clk 0:02:47]}  c5 {[%clk 0:02:43]} 7. c4 {[%clk 0:02:46]}  dxc4 {[%clk 0:02:42]} 8. Bxc4 {[%clk 0:02:45]}  b5 {[%clk 0:02:40]} 9. Be2 {[%clk 0:02:41]}  c4 {[%clk 0:02:40]} 10. Nbd2 {[%clk 0:02:37]}  Nc6 {[%clk 0:02:39]} 11. Nb1 {[%clk 0:02:32]}  Bb4+ {[%clk 0:02:36]} 12. Nc3 {[%clk 0:02:28]}  Nge7 {[%clk 0:02:29]} 13. O-O {[%clk 0:02:28]}  O-O {[%clk 0:02:26]} 14. Bg5 {[%clk 0:02:26]}  h6 {[%clk 0:02:25]} 15. Bh4 {[%clk 0:02:26]}  Qd7 {[%clk 0:02:25]} 16. h3 {[%clk 0:02:22]}  Ba5 {[%clk 0:02:24]} 17. g4 {[%clk 0:02:06]}  Bh7 {[%clk 0:02:23]} 18. Qd2 {[%clk 0:01:54]}  Nd5 {[%clk 0:01:46]} 19. Rfd1 {[%clk 0:01:51]}  Rfe8 {[%clk 0:01:40]} 20. a3 {[%clk 0:01:43]}  Nce7 {[%clk 0:01:35]} 21. Bxe7 {[%clk 0:01:33]}  Qxe7 {[%clk 0:01:27]} 22. Nxd5 {[%clk 0:01:32]}  Bxd2 {[%clk 0:01:26]} 23. Nxe7+ {[%clk 0:01:32]}  Rxe7 {[%clk 0:01:26]} 24. Rxd2 {[%clk 0:01:32]}  Rd8 {[%clk 0:01:26]} 25. Rad1 {[%clk 0:01:30]}  Red7 {[%clk 0:01:27]} 26. g5 {[%clk 0:01:26]}  Be4 {[%clk 0:01:25]} 27. gxh6 {[%clk 0:01:21]}  gxh6 {[%clk 0:01:26]} 28. Kh2 {[%clk 0:01:22]}  Kh7 {[%clk 0:01:26]} 29. Ng1 {[%clk 0:00:53]}  Kg6 {[%clk 0:01:17]} 30. Bf3 {[%clk 0:00:52]}  Bd3 {[%clk 0:01:16]} 31. Ne2 {[%clk 0:00:50]}  Kf5 {[%clk 0:01:14]} 32. Bc6 {[%clk 0:00:35]}  Rc7 {[%clk 0:01:13]} 33. Ng3+ {[%clk 0:00:33]}  Kf4 {[%clk 0:01:12]} 34. Nh5+ {[%clk 0:00:24]}  Kg5 {[%clk 0:01:09]} 35. Bf3 {[%clk 0:00:22]}  Rxd4 {[%clk 0:01:07]} 36. Rg1+ {[%clk 0:00:20]}  Kf5 {[%clk 0:01:07]} 37. Rg4 {[%clk 0:00:14]}  Kxe5 {[%clk 0:01:06]} 38. Kg3 {[%clk 0:00:11]}  f5 {[%clk 0:01:03]} 39. Rg7 {[%clk 0:00:10]}  Rxg7+ {[%clk 0:00:54]} 40. Nxg7 {[%clk 0:00:10]}  a5 {[%clk 0:00:54]} 41. Nh5 {[%clk 0:00:09]}  b4 {[%clk 0:00:54]} 42. axb4 {[%clk 0:00:09]}  axb4 {[%clk 0:00:55]} 43. Bd1 {[%clk 0:00:08]}  c3 {[%clk 0:00:55]} 44. f4+ {[%clk 0:00:08]}  Kd5 {[%clk 0:00:54]} 45. bxc3 {[%clk 0:00:08]}  bxc3 {[%clk 0:00:54]} 46. Ra2 {[%clk 0:00:08]}  Bc4 {[%clk 0:00:53]} 47. Ra5+ {[%clk 0:00:08]}  Kc6 {[%clk 0:00:53]} 48. Bc2 {[%clk 0:00:08]}  Rd2 {[%clk 0:00:53]} 49. Ba4+ {[%clk 0:00:06]}  Kb6 {[%clk 0:00:53]} 50. Re5 {[%clk 0:00:05]}  c2 {[%clk 0:00:52]} 0-1


[Site "https://www.chess.com"]

[Event "Titled Tuesday Blitz April 25 Late 2023"]
[White "Stanisz, Patryk"]
[Black "Mazurkiewicz, Michal"]
[WhiteFideId "1123106"]
[BlackFideId "1124943"]
[WhiteElo "2069"]
[BlackElo "2054"]
[Result "1-0"]
[Round "09"]
[TimeControl "180+2"]
[Date "2023.04.25"]
[WhiteClock "0:00:51"]
[BlackClock "0:00:07"]

1. d4 {[%clk 0:03:00]}  Nf6 {[%clk 0:02:59]} 2. Nf3 {[%clk 0:02:58]}  g6 {[%clk 0:02:59]} 3. c4 {[%clk 0:02:51]}  Bg7 {[%clk 0:03:00]} 4. Nc3 {[%clk 0:02:52]}  O-O {[%clk 0:03:00]} 5. e4 {[%clk 0:02:52]}  d6 {[%clk 0:03:00]} 6. Be2 {[%clk 0:02:52]}  c5 {[%clk 0:03:01]} 7. d5 {[%clk 0:02:52]}  e6 {[%clk 0:03:01]} 8. O-O {[%clk 0:02:52]}  exd5 {[%clk 0:03:02]} 9. cxd5 {[%clk 0:02:52]}  Re8 {[%clk 0:03:01]} 10. Nd2 {[%clk 0:02:52]}  Na6 {[%clk 0:02:57]} 11. Re1 {[%clk 0:02:50]}  Bd7 {[%clk 0:02:56]} 12. a4 {[%clk 0:02:43]}  Nb4 {[%clk 0:02:55]} 13. Ra3 {[%clk 0:02:42]}  a6 {[%clk 0:02:49]} 14. a5 {[%clk 0:02:41]}  b5 {[%clk 0:02:33]} 15. axb6 {[%clk 0:02:41]}  Qxb6 {[%clk 0:02:33]} 16. Nc4 {[%clk 0:02:41]}  Qc7 {[%clk 0:02:33]} 17. Bf4 {[%clk 0:02:33]}  Nxe4 {[%clk 0:02:21]} 18. Nxe4 {[%clk 0:02:32]}  Rxe4 {[%clk 0:02:22]} 19. Bxd6 {[%clk 0:02:30]}  Qb7 {[%clk 0:02:09]} 20. Bxc5 {[%clk 0:02:24]}  Qxd5 {[%clk 0:01:06]} 21. Nb6 {[%clk 0:02:12]}  Qxd1 {[%clk 0:01:03]} 22. Rxd1 {[%clk 0:02:12]}  Rae8 {[%clk 0:00:55]} 23. Nxd7 {[%clk 0:02:05]}  Nc2 {[%clk 0:00:47]} 24. Re3 {[%clk 0:02:00]}  Nxe3 {[%clk 0:00:47]} 25. Bxe3 {[%clk 0:01:59]}  a5 {[%clk 0:00:32]} 26. b3 {[%clk 0:01:54]}  Rb4 {[%clk 0:00:21]} 27. Nc5 {[%clk 0:01:33]}  Bf8 {[%clk 0:00:12]} 28. Bc4 {[%clk 0:01:26]}  Rb6 {[%clk 0:00:07]} 29. Nd7 {[%clk 0:01:05]}  Rc6 {[%clk 0:00:06]} 30. h4 {[%clk 0:00:59]}  a4 {[%clk 0:00:05]} 31. Bb5 {[%clk 0:00:53]}  Rd6 {[%clk 0:00:06]} 32. Rxd6 {[%clk 0:00:51]}  Bxd6 {[%clk 0:00:07]} 33. Nf6+ {[%clk 0:00:51]} 1-0


[Site "https://www.chess.com"]

[Event "Titled Tuesday Blitz April 25 Late 2023"]
[White "Romero Ruscalleda, Josep"]
[Black "Schuster, Karsten"]
[WhiteFideId "2231859"]
[BlackFideId "4611071"]
[WhiteElo "2183"]
[BlackElo "2294"]
[Result "0-1"]
[Round "09"]
[TimeControl "180+2"]
[Date "2023.04.25"]
[WhiteClock "0:00:49"]
[BlackClock "0:00:31"]

1. e4 {[%clk 0:03:00]}  d5 {[%clk 0:02:59]} 2. exd5 {[%clk 0:03:00]}  Qxd5 {[%clk 0:02:59]} 3. Nc3 {[%clk 0:03:00]}  Qd6 {[%clk 0:02:59]} 4. g3 {[%clk 0:02:59]}  c6 {[%clk 0:02:58]} 5. Bg2 {[%clk 0:02:59]}  Nf6 {[%clk 0:02:58]} 6. Nge2 {[%clk 0:02:57]}  Bg4 {[%clk 0:02:58]} 7. O-O {[%clk 0:02:56]}  e6 {[%clk 0:02:58]} 8. d4 {[%clk 0:02:54]}  Qc7 {[%clk 0:02:56]} 9. h3 {[%clk 0:02:52]}  Bh5 {[%clk 0:02:56]} 10. Bf4 {[%clk 0:02:33]}  Bd6 {[%clk 0:02:55]} 11. Nb5 {[%clk 0:02:28]}  cxb5 {[%clk 0:02:49]} 12. Bxd6 {[%clk 0:02:28]}  Qxd6 {[%clk 0:02:49]} 13. Bxb7 {[%clk 0:02:28]}  Nc6 {[%clk 0:02:43]} 14. Bxa8 {[%clk 0:02:28]}  O-O {[%clk 0:02:43]} 15. Bxc6 {[%clk 0:02:25]}  Qxc6 {[%clk 0:02:16]} 16. Qd3 {[%clk 0:02:25]}  Rd8 {[%clk 0:01:57]} 17. Nf4 {[%clk 0:02:22]}  Bf3 {[%clk 0:01:54]} 18. Rfe1 {[%clk 0:02:18]}  Be4 {[%clk 0:01:48]} 19. Qc3 {[%clk 0:02:10]}  Qb6 {[%clk 0:01:47]} 20. Rad1 {[%clk 0:02:03]}  g5 {[%clk 0:01:39]} 21. Nh5 {[%clk 0:01:57]}  Nxh5 {[%clk 0:01:21]} 22. Rxe4 {[%clk 0:01:57]}  Nf6 {[%clk 0:01:20]} 23. Re5 {[%clk 0:01:55]}  h6 {[%clk 0:01:19]} 24. Qf3 {[%clk 0:01:48]}  Kg7 {[%clk 0:01:13]} 25. c3 {[%clk 0:01:43]}  b4 {[%clk 0:01:12]} 26. h4 {[%clk 0:01:31]}  g4 {[%clk 0:01:12]} 27. Qe2 {[%clk 0:01:19]}  bxc3 {[%clk 0:01:12]} 28. bxc3 {[%clk 0:01:18]}  Qc7 {[%clk 0:01:11]} 29. Rd3 {[%clk 0:01:16]}  Rb8 {[%clk 0:01:04]} 30. Qc2 {[%clk 0:01:08]}  Qc6 {[%clk 0:00:55]} 31. Rd1 {[%clk 0:01:05]}  Rc8 {[%clk 0:00:52]} 32. Rc1 {[%clk 0:01:00]}  Qf3 {[%clk 0:00:46]} 33. Qe2 {[%clk 0:00:56]}  Rxc3 {[%clk 0:00:44]} 34. Qxf3 {[%clk 0:00:56]}  Rxc1+ {[%clk 0:00:42]} 35. Kh2 {[%clk 0:00:53]}  gxf3 {[%clk 0:00:42]} 36. Ra5 {[%clk 0:00:53]}  Rc2 {[%clk 0:00:39]} 37. Kg1 {[%clk 0:00:51]}  Ne4 {[%clk 0:00:38]} 38. Rxa7 {[%clk 0:00:50]}  Rxf2 {[%clk 0:00:36]} 39. d5 {[%clk 0:00:49]}  Rg2+ {[%clk 0:00:33]} 40. Kf1 {[%clk 0:00:49]}  Nd2+ {[%clk 0:00:32]} 41. Ke1 {[%clk 0:00:49]}  f2+ {[%clk 0:00:31]} 42. Kxd2 {[%clk 0:00:49]}  f1=Q+ {[%clk 0:00:31]} 0-1


[Site "https://www.chess.com"]

[Event "Titled Tuesday Blitz April 25 Late 2023"]
[White "Mustafayev, Farid"]
[Black "Osmonbekov, Talaibek"]
[WhiteFideId "13408771"]
[BlackFideId "2017253"]
[WhiteElo "2237"]
[BlackElo "2135"]
[Result "0-1"]
[Round "09"]
[TimeControl "180+2"]
[Date "2023.04.25"]
[WhiteClock "0:00:01"]
[BlackClock "0:00:37"]

1. e4 {[%clk 0:03:00]}  c5 {[%clk 0:02:59]} 2. Nf3 {[%clk 0:03:00]}  d6 {[%clk 0:03:00]} 3. d4 {[%clk 0:03:00]}  cxd4 {[%clk 0:03:01]} 4. Nxd4 {[%clk 0:03:01]}  Nf6 {[%clk 0:03:01]} 5. Nc3 {[%clk 0:03:02]}  g6 {[%clk 0:03:02]} 6. Be3 {[%clk 0:03:02]}  Bg7 {[%clk 0:03:03]} 7. f3 {[%clk 0:03:02]}  O-O {[%clk 0:03:03]} 8. Qd2 {[%clk 0:03:03]}  Nc6 {[%clk 0:03:04]} 9. g4 {[%clk 0:03:02]}  h5 {[%clk 0:02:57]} 10. gxh5 {[%clk 0:02:53]}  Nxh5 {[%clk 0:02:56]} 11. O-O-O {[%clk 0:02:50]}  Bd7 {[%clk 0:02:48]} 12. f4 {[%clk 0:02:46]}  Nxd4 {[%clk 0:02:13]} 13. Bxd4 {[%clk 0:02:47]}  Bxd4 {[%clk 0:02:13]} 14. Qxd4 {[%clk 0:02:45]}  Nxf4 {[%clk 0:02:14]} 15. h4 {[%clk 0:02:42]}  Bg4 {[%clk 0:02:10]} 16. Rd2 {[%clk 0:02:34]}  e5 {[%clk 0:02:02]} 17. Qxd6 {[%clk 0:02:25]}  Qxd6 {[%clk 0:02:00]} 18. Rxd6 {[%clk 0:02:26]}  Rfd8 {[%clk 0:02:00]} 19. Rxd8+ {[%clk 0:02:16]}  Rxd8 {[%clk 0:02:01]} 20. Bc4 {[%clk 0:02:16]}  a6 {[%clk 0:01:59]} 21. a4 {[%clk 0:02:14]}  Rd4 {[%clk 0:01:56]} 22. b3 {[%clk 0:02:08]}  Kg7 {[%clk 0:01:48]} 23. Kb2 {[%clk 0:02:02]}  f5 {[%clk 0:01:39]} 24. exf5 {[%clk 0:01:55]}  gxf5 {[%clk 0:01:40]} 25. Re1 {[%clk 0:01:49]}  e4 {[%clk 0:01:38]} 26. a5 {[%clk 0:01:30]}  Kg6 {[%clk 0:01:35]} 27. Na4 {[%clk 0:01:28]}  Ng2 {[%clk 0:01:19]} 28. Rh1 {[%clk 0:01:18]}  Rd7 {[%clk 0:01:14]} 29. Nc5 {[%clk 0:01:16]}  Re7 {[%clk 0:01:13]} 30. Kc3 {[%clk 0:00:34]}  e3 {[%clk 0:01:11]} 31. Nd3 {[%clk 0:00:32]}  e2 {[%clk 0:01:08]} 32. Ne1 {[%clk 0:00:17]}  Nxe1 {[%clk 0:01:04]} 33. Rxe1 {[%clk 0:00:17]}  f4 {[%clk 0:01:04]} 34. Kd2 {[%clk 0:00:16]}  f3 {[%clk 0:01:04]} 35. Rg1 {[%clk 0:00:11]}  Kh5 {[%clk 0:01:03]} 36. Ke1 {[%clk 0:00:10]}  Kxh4 {[%clk 0:01:03]} 37. Kf2 {[%clk 0:00:10]}  Re5 {[%clk 0:00:54]} 38. Rh1+ {[%clk 0:00:10]}  Kg5 {[%clk 0:00:53]} 39. Re1 {[%clk 0:00:11]}  Kf4 {[%clk 0:00:51]} 40. Rh1 {[%clk 0:00:11]}  Rxa5 {[%clk 0:00:50]} 41. Re1 {[%clk 0:00:10]}  Rc5 {[%clk 0:00:49]} 42. Bd3 {[%clk 0:00:10]}  b5 {[%clk 0:00:49]} 43. Rh1 {[%clk 0:00:10]}  a5 {[%clk 0:00:49]} 44. Rh8 {[%clk 0:00:10]}  b4 {[%clk 0:00:48]} 45. Rf8+ {[%clk 0:00:10]}  Bf5 {[%clk 0:00:48]} 46. Rf7 {[%clk 0:00:07]}  Rd5 {[%clk 0:00:45]} 47. Rf8 {[%clk 0:00:07]}  Re5 {[%clk 0:00:44]} 48. Ke1 {[%clk 0:00:06]}  Ke3 {[%clk 0:00:44]} 49. Bxe2 {[%clk 0:00:01]}  fxe2 {[%clk 0:00:42]} 50. c3 {[%clk 0:00:01]}  bxc3 {[%clk 0:00:42]} 51. b4 {[%clk 0:00:02]}  c2 {[%clk 0:00:41]} 52. Rc8 {[%clk 0:00:01]}  Rd5 {[%clk 0:00:37]} 0-1


[Site "https://www.chess.com"]

[Event "Titled Tuesday Blitz April 25 Late 2023"]
[White "Dahlgren, James Allen"]
[Black "Figorito, Nick"]
[WhiteFideId "22256873"]
[BlackFideId "30923689"]
[WhiteElo "1824"]
[BlackElo "2036"]
[Result "0-1"]
[Round "09"]
[TimeControl "180+2"]
[Date "2023.04.25"]
[WhiteClock "0:02:30"]
[BlackClock "0:02:36"]

1. e4 {[%clk 0:03:00]}  e6 {[%clk 0:02:59]} 2. Nc3 {[%clk 0:03:01]}  d5 {[%clk 0:03:00]} 3. d4 {[%clk 0:03:00]}  Bb4 {[%clk 0:03:00]} 4. e5 {[%clk 0:03:00]}  c5 {[%clk 0:03:00]} 5. a3 {[%clk 0:03:00]}  Bxc3+ {[%clk 0:03:01]} 6. bxc3 {[%clk 0:03:01]}  Ne7 {[%clk 0:03:01]} 7. Qg4 {[%clk 0:03:00]}  Kf8 {[%clk 0:03:02]} 8. h4 {[%clk 0:02:50]}  Qa5 {[%clk 0:03:02]} 9. Rh3 {[%clk 0:02:47]}  Nbc6 {[%clk 0:02:55]} 10. Rg3 {[%clk 0:02:41]}  Nf5 {[%clk 0:02:54]} 11. Bh6 {[%clk 0:02:36]}  gxh6 {[%clk 0:02:44]} 12. Qf4 {[%clk 0:02:36]}  Nxg3 {[%clk 0:02:40]} 13. Qxh6+ {[%clk 0:02:36]}  Ke8 {[%clk 0:02:36]} 14. fxg3 {[%clk 0:02:30]}  Qxc3+ {[%clk 0:02:36]} 0-1


[Site "https://www.chess.com"]